[Event "Late-Titled-Tuesday-Blitz-April-02-2024"]
[Site "Chess.com"]
[Date "2024.04.02"]
[Round "4"]
[White "CatLoverPL"]
[Black "chucksterf10"]
[Result "0-1"]
[WhiteElo "2504"]
[BlackElo "2657"]
[TimeControl "180+1"]
[EndTime "14:37:40 PDT"]
[Termination "chucksterf10 won by resignation"]

1. g3 {[%clk 0:02:21.9]} 1... e5 {[%clk 0:02:51.1]} 2. Bg2 {[%clk 0:02:22.1]}
2... Bc5 {[%clk 0:02:51.1]} 3. c4 {[%clk 0:02:22.8]} 3... Nf6 {[%clk 0:02:50.6]}
4. d3 {[%clk 0:02:23.2]} 4... O-O {[%clk 0:02:49.9]} 5. Nf3 {[%clk 0:02:22.8]}
5... Re8 {[%clk 0:02:47.2]} 6. O-O {[%clk 0:02:23.1]} 6... c6 {[%clk 0:02:47.5]}
7. Nc3 {[%clk 0:02:23.5]} 7... d5 {[%clk 0:02:47]} 8. cxd5 {[%clk 0:02:24]} 8...
cxd5 {[%clk 0:02:47.9]} 9. Bg5 {[%clk 0:02:23.8]} 9... d4 {[%clk 0:02:32.6]} 10.
Bxf6 {[%clk 0:02:22.4]} 10... Qxf6 {[%clk 0:02:29.2]} 11. Ne4 {[%clk 0:02:21.8]}
11... Qb6 {[%clk 0:02:29.9]} 12. Nxc5 {[%clk 0:02:21.8]} 12... Qxc5 {[%clk
0:02:30.8]} 13. Rc1 {[%clk 0:02:22.3]} 13... Qe7 {[%clk 0:02:25.4]} 14. Nd2
{[%clk 0:02:20.8]} 14... Nc6 {[%clk 0:02:24.3]} 15. Qa4 {[%clk 0:02:20.1]} 15...
Bd7 {[%clk 0:02:23.4]} 16. Ne4 {[%clk 0:02:12]} 16... Nb4 {[%clk 0:01:57]} 17.
Qa3 {[%clk 0:02:11.8]} 17... a5 {[%clk 0:01:52.1]} 18. Nc5 {[%clk 0:02:09.4]}
18... Bc6 {[%clk 0:01:52.2]} 19. Bxc6 {[%clk 0:02:07.9]} 19... bxc6 {[%clk
0:01:53.1]} 20. Rc4 {[%clk 0:01:58.7]} 20... Reb8 {[%clk 0:01:50.2]} 21. Rfc1
{[%clk 0:01:58.3]} 21... Rb5 {[%clk 0:01:49.3]} 22. Qa4 {[%clk 0:01:55.5]} 22...
h5 {[%clk 0:01:41.8]} 23. a3 {[%clk 0:01:55.5]} 23... Nd5 {[%clk 0:01:41.7]} 24.
Ne4 {[%clk 0:01:52.1]} 24... Nb6 {[%clk 0:01:41.5]} 25. Qc2 {[%clk 0:01:44.6]}
25... Nxc4 {[%clk 0:01:41]} 26. Qxc4 {[%clk 0:01:45.5]} 26... Rxb2 {[%clk
0:01:34.2]} 27. Qxc6 {[%clk 0:01:44.1]} 27... Rab8 {[%clk 0:01:29.9]} 28. Kf1
{[%clk 0:01:15.1]} 28... h4 {[%clk 0:01:24.2]} 29. Qa4 {[%clk 0:01:09]} 29... h3
{[%clk 0:01:14.5]} 30. Qxa5 {[%clk 0:01:08.6]} 30... Rb1 {[%clk 0:01:12.3]} 31.
Qe1 {[%clk 0:01:08.1]} 31... Qb7 {[%clk 0:01:04.1]} 32. f3 {[%clk 0:00:59.7]}
32... Rxc1 {[%clk 0:00:40.7]} 33. Qxc1 {[%clk 0:00:59.9]} 33... Qb1 {[%clk
0:00:41.6]} 34. Qxb1 {[%clk 0:00:59.2]} 34... Rxb1+ {[%clk 0:00:42.5]} 35. Kf2
{[%clk 0:00:57.2]} 35... Rh1 {[%clk 0:00:43.2]} 36. g4 {[%clk 0:00:40]} 36...
Rxh2+ {[%clk 0:00:42.8]} 37. Kf1 {[%clk 0:00:36.6]} 37... Rh1+ {[%clk
0:00:41.3]} 38. Kf2 {[%clk 0:00:36.9]} 38... g6 {[%clk 0:00:33.8]} 39. a4 {[%clk
0:00:27.5]} 39... f5 {[%clk 0:00:32.1]} 40. gxf5 {[%clk 0:00:27.5]} 40... gxf5
{[%clk 0:00:33]} 41. Nf6+ {[%clk 0:00:22.7]} 41... Kf7 {[%clk 0:00:32.6]} 42.
Nd7 {[%clk 0:00:21.7]} 42... f4 {[%clk 0:00:31.2]} 43. Nxe5+ {[%clk 0:00:21.1]}
43... Ke6 {[%clk 0:00:31.5]} 44. Ng4 {[%clk 0:00:18.7]} 44... Ra1 {[%clk
0:00:27.7]} 45. Nh2 {[%clk 0:00:08.6]} 45... Kf5 {[%clk 0:00:27.7]} 46. Nf1
{[%clk 0:00:08.8]} 46... Kg5 {[%clk 0:00:26.9]} 47. Nd2 {[%clk 0:00:07.9]} 47...
h2 {[%clk 0:00:25.8]} 48. Kg2 {[%clk 0:00:07.5]} 48... h1=Q+ {[%clk 0:00:25.9]}
0-1

[Event "Late-Titled-Tuesday-Blitz-April-02-2024"]
[Site "Chess.com"]
[Date "2024.04.02"]
[Round "4"]
[White "UK_23"]
[Black "GoltsevDmitry2000"]
[Result "0-1"]
[WhiteElo "2401"]
[BlackElo "2793"]
[TimeControl "180+1"]
[EndTime "14:37:40 PDT"]
[Termination "GoltsevDmitry2000 won on time"]

1. e4 {[%clk 0:02:56.6]} 1... e6 {[%clk 0:02:59.7]} 2. d4 {[%clk 0:02:55.9]}
2... d5 {[%clk 0:03:00.2]} 3. e5 {[%clk 0:02:56.5]} 3... c5 {[%clk 0:03:00.4]}
4. c3 {[%clk 0:02:57.2]} 4... Nc6 {[%clk 0:03:00.8]} 5. Nf3 {[%clk 0:02:57.8]}
5... cxd4 {[%clk 0:03:01.4]} 6. cxd4 {[%clk 0:02:57.6]} 6... Nge7 {[%clk
0:03:02]} 7. Na3 {[%clk 0:02:57.8]} 7... Nf5 {[%clk 0:03:02]} 8. Nc2 {[%clk
0:02:58.4]} 8... h5 {[%clk 0:03:02.4]} 9. Bd3 {[%clk 0:02:56.6]} 9... Be7 {[%clk
0:03:02.6]} 10. Bxf5 {[%clk 0:02:55.7]} 10... exf5 {[%clk 0:03:03.5]} 11. O-O
{[%clk 0:02:54.4]} 11... g5 {[%clk 0:03:03.3]} 12. Nfe1 {[%clk 0:02:52.6]} 12...
f4 {[%clk 0:03:03]} 13. Nd3 {[%clk 0:02:52.7]} 13... Bf5 {[%clk 0:03:02]} 14.
Re1 {[%clk 0:02:52.3]} 14... h4 {[%clk 0:03:00.4]} 15. h3 {[%clk 0:02:39.3]}
15... Qb6 {[%clk 0:02:56.7]} 16. Nc5 {[%clk 0:01:45]} 16... Bxc5 {[%clk
0:02:42.5]} 17. dxc5 {[%clk 0:01:44.9]} 17... Qxc5 {[%clk 0:02:43.4]} 18. Na3
{[%clk 0:01:41.2]} 18... O-O-O {[%clk 0:02:32.8]} 19. Bd2 {[%clk 0:01:37.4]}
19... Kb8 {[%clk 0:02:27.8]} 20. Rc1 {[%clk 0:01:34.3]} 20... Qb6 {[%clk
0:02:27.1]} 21. Qa4 {[%clk 0:01:14.9]} 21... f3 {[%clk 0:02:16.8]} 22. Bxg5
{[%clk 0:01:10.8]} 22... Rdg8 {[%clk 0:02:13.6]} 23. Qf4 {[%clk 0:01:06.8]}
23... Be6 {[%clk 0:02:11.4]} 24. Rc3 {[%clk 0:00:16.6]} 24... Rh5 {[%clk
0:01:58.5]} 25. Bxh4 {[%clk 0:00:16.2]} 25... Rxg2+ {[%clk 0:01:57.2]} 26. Kf1
{[%clk 0:00:16.3]} 26... Qa6+ {[%clk 0:01:29.4]} 27. Nc4 {[%clk 0:00:12.7]}
27... dxc4 {[%clk 0:01:29]} 28. Qxf3 {[%clk 0:00:12.2]} 28... Rxh4 {[%clk
0:01:25.8]} 29. Qxg2 {[%clk 0:00:12.4]} 29... Qb5 {[%clk 0:01:18.3]} 30. Qg8+
{[%clk 0:00:10]} 30... Kc7 {[%clk 0:01:17.9]} 31. Qg5 {[%clk 0:00:10.1]} 31...
Rxh3 {[%clk 0:01:15.9]} 32. Rxh3 {[%clk 0:00:08.4]} 32... Bxh3+ {[%clk
0:01:16.8]} 33. Kg1 {[%clk 0:00:09.2]} 33... Be6 {[%clk 0:01:15.5]} 34. Qf6
{[%clk 0:00:08.9]} 34... Qxb2 {[%clk 0:01:14.1]} 35. Qf4 {[%clk 0:00:07.7]}
35... c3 {[%clk 0:01:12.7]} 36. Qc1 {[%clk 0:00:02.6]} 36... Qxc1 {[%clk
0:01:12.8]} 37. Rxc1 {[%clk 0:00:03.5]} 37... Nd4 {[%clk 0:01:13.6]} 38. Rxc3+
{[%clk 0:00:03.9]} 38... Kb6 {[%clk 0:01:13.4]} 39. Re3 {[%clk 0:00:04.8]} 39...
Kc5 {[%clk 0:01:12.8]} 40. f4 {[%clk 0:00:05.5]} 40... Bxa2 {[%clk 0:01:12.7]}
41. Kf2 {[%clk 0:00:05.9]} 41... Be6 {[%clk 0:01:13.2]} 42. Rc3+ {[%clk
0:00:06.5]} 42... Kd5 {[%clk 0:01:12.6]} 43. Rc7 {[%clk 0:00:06.9]} 43... b5
{[%clk 0:01:06.9]} 44. Rxa7 {[%clk 0:00:07]} 44... b4 {[%clk 0:01:07.7]} 45.
Ra5+ {[%clk 0:00:07.2]} 45... Kc4 {[%clk 0:01:07.6]} 46. Ke3 {[%clk 0:00:07.2]}
46... Nb5 {[%clk 0:00:51]} 47. Kd2 {[%clk 0:00:06.9]} 47... Nc3 {[%clk
0:00:49.5]} 48. Ra7 {[%clk 0:00:06.6]} 48... Nb5 {[%clk 0:00:43.4]} 49. Ra6
{[%clk 0:00:04]} 49... b3 {[%clk 0:00:42.8]} 50. Rc6+ {[%clk 0:00:04.1]} 50...
Kb4 {[%clk 0:00:42.2]} 51. Kc1 {[%clk 0:00:04.2]} 51... Nd4 {[%clk 0:00:40.8]}
52. Rb6+ {[%clk 0:00:02.8]} 52... Kc3 {[%clk 0:00:41.3]} 0-1

[Event "Late-Titled-Tuesday-Blitz-April-02-2024"]
[Site "Chess.com"]
[Date "2024.04.02"]
[Round "4"]
[White "carloseduar100"]
[Black "Walter_White_Poland"]
[Result "1-0"]
[WhiteElo "2214"]
[BlackElo "2429"]
[TimeControl "180+1"]
[EndTime "14:37:41 PDT"]
[Termination "carloseduar100 won by checkmate"]

1. g3 {[%clk 0:02:32]} 1... g6 {[%clk 0:02:56.9]} 2. Bg2 {[%clk 0:02:32.9]} 2...
Bg7 {[%clk 0:02:57]} 3. Nf3 {[%clk 0:02:33.8]} 3... d6 {[%clk 0:02:56.6]} 4. O-O
{[%clk 0:02:34.7]} 4... e5 {[%clk 0:02:55.4]} 5. d4 {[%clk 0:02:35.6]} 5... e4
{[%clk 0:02:55]} 6. Ne1 {[%clk 0:02:35.5]} 6... d5 {[%clk 0:02:54.1]} 7. e3
{[%clk 0:02:35.7]} 7... Nf6 {[%clk 0:02:39.2]} 8. c4 {[%clk 0:02:35.7]} 8... c6
{[%clk 0:02:39.4]} 9. Nc3 {[%clk 0:02:35.3]} 9... a6 {[%clk 0:02:38.7]} 10. cxd5
{[%clk 0:02:34.4]} 10... cxd5 {[%clk 0:02:38.4]} 11. Qb3 {[%clk 0:02:35]} 11...
b5 {[%clk 0:02:33.1]} 12. Nc2 {[%clk 0:02:34.1]} 12... O-O {[%clk 0:02:23.7]}
13. a4 {[%clk 0:02:34]} 13... bxa4 {[%clk 0:02:20.2]} 14. Rxa4 {[%clk
0:02:33.1]} 14... Nc6 {[%clk 0:02:12.7]} 15. Nb4 {[%clk 0:02:29]} 15... Nxb4
{[%clk 0:01:43.3]} 16. Rxb4 {[%clk 0:02:29.9]} 16... Be6 {[%clk 0:01:33.1]} 17.
Bd2 {[%clk 0:02:12.1]} 17... Qd6 {[%clk 0:01:32.5]} 18. Ra1 {[%clk 0:02:10.1]}
18... Rfb8 {[%clk 0:01:30.6]} 19. Na4 {[%clk 0:02:07.5]} 19... h5 {[%clk
0:01:17.4]} 20. Nc5 {[%clk 0:02:00.5]} 20... Bc8 {[%clk 0:01:05.9]} 21. Bf1
{[%clk 0:01:50.9]} 21... h4 {[%clk 0:01:02.9]} 22. Rxb8 {[%clk 0:01:21.6]} 22...
Rxb8 {[%clk 0:01:01.9]} 23. Bb4 {[%clk 0:01:20.7]} 23... Ng4 {[%clk 0:00:51.5]}
24. Nxa6 {[%clk 0:00:53]} 24... Qf6 {[%clk 0:00:42.1]} 25. Qc2 {[%clk
0:00:38.8]} 25... Bxa6 {[%clk 0:00:36.1]} 26. Rxa6 {[%clk 0:00:39.7]} 26... Qf5
{[%clk 0:00:31.8]} 27. Bd6 {[%clk 0:00:35.3]} 27... Rc8 {[%clk 0:00:31.1]} 28.
Qe2 {[%clk 0:00:31.5]} 28... Rc1 {[%clk 0:00:22.8]} 29. h3 {[%clk 0:00:25.7]}
29... Nh6 {[%clk 0:00:14.5]} 30. g4 {[%clk 0:00:25.7]} 30... Qc8 {[%clk
0:00:12.9]} 31. Ra3 {[%clk 0:00:23.1]} 31... Rc2 {[%clk 0:00:10.7]} 32. Rc3
{[%clk 0:00:20.4]} 32... Rxc3 {[%clk 0:00:09.5]} 33. bxc3 {[%clk 0:00:21.3]}
33... Qxc3 {[%clk 0:00:09.4]} 34. Qb5 {[%clk 0:00:20.2]} 34... Kh7 {[%clk
0:00:08.5]} 35. Qxd5 {[%clk 0:00:20.1]} 35... Qe1 {[%clk 0:00:07.9]} 36. Qxe4
{[%clk 0:00:18.9]} 36... f5 {[%clk 0:00:07.2]} 37. Qe7 {[%clk 0:00:15.9]} 37...
Ng8 {[%clk 0:00:05.6]} 38. Qf7 {[%clk 0:00:14.8]} 38... Kh6 {[%clk 0:00:03.6]}
39. Bf4+ {[%clk 0:00:13.5]} 39... g5 {[%clk 0:00:03.3]} 40. gxf5 {[%clk
0:00:13.5]} 40... gxf4 {[%clk 0:00:03]} 41. Qg6# {[%clk 0:00:13.5]} 1-0

[Event "Late-Titled-Tuesday-Blitz-April-02-2024"]
[Site "Chess.com"]
[Date "2024.04.02"]
[Round "4"]
[White "BabageldiAnnaberdiyev"]
[Black "ViIIagra"]
[Result "0-1"]
[WhiteElo "2599"]
[BlackElo "2897"]
[TimeControl "180+1"]
[EndTime "14:37:43 PDT"]
[Termination "ViIIagra won by resignation"]

1. e4 {[%clk 0:03:00.9]} 1... d6 {[%clk 0:02:59.9]} 2. d4 {[%clk 0:03:00.1]}
2... Nf6 {[%clk 0:02:59.7]} 3. Nc3 {[%clk 0:03:00.4]} 3... e5 {[%clk 0:02:59.6]}
4. Nf3 {[%clk 0:03:00.2]} 4... Nbd7 {[%clk 0:02:59.5]} 5. Bc4 {[%clk 0:03:00]}
5... Be7 {[%clk 0:03:00.1]} 6. O-O {[%clk 0:02:59.6]} 6... O-O {[%clk
0:03:00.8]} 7. Re1 {[%clk 0:02:59.4]} 7... c6 {[%clk 0:03:00]} 8. a4 {[%clk
0:02:59.4]} 8... h6 {[%clk 0:02:59.4]} 9. h3 {[%clk 0:02:59]} 9... Re8 {[%clk
0:02:53.5]} 10. Be3 {[%clk 0:02:57.4]} 10... Bf8 {[%clk 0:02:52]} 11. d5 {[%clk
0:02:47.8]} 11... Nb6 {[%clk 0:02:39.3]} 12. Bb3 {[%clk 0:02:37.2]} 12... cxd5
{[%clk 0:02:33.2]} 13. Bxb6 {[%clk 0:02:36.6]} 13... Qxb6 {[%clk 0:02:18.8]} 14.
a5 {[%clk 0:02:35.2]} 14... Qc7 {[%clk 0:02:07.4]} 15. Nxd5 {[%clk 0:02:34.4]}
15... Nxd5 {[%clk 0:02:07.1]} 16. Bxd5 {[%clk 0:02:35]} 16... Rb8 {[%clk
0:02:03.9]} 17. c3 {[%clk 0:02:25.2]} 17... g6 {[%clk 0:01:40.9]} 18. Nh2 {[%clk
0:02:18.8]} 18... h5 {[%clk 0:01:30.9]} 19. Qd2 {[%clk 0:02:16.7]} 19... Kh7
{[%clk 0:01:30.6]} 20. Nf3 {[%clk 0:02:15.2]} 20... Bh6 {[%clk 0:01:31]} 21.
Ng5+ {[%clk 0:02:11.6]} 21... Kg7 {[%clk 0:01:31.2]} 22. f4 {[%clk 0:02:03.3]}
22... exf4 {[%clk 0:01:31.7]} 23. Nxf7 {[%clk 0:02:00.8]} 23... g5 {[%clk
0:01:28]} 24. Nxh6 {[%clk 0:01:59]} 24... Kxh6 {[%clk 0:01:28.9]} 25. h4 {[%clk
0:01:59.6]} 25... Bg4 {[%clk 0:01:19.5]} 26. hxg5+ {[%clk 0:01:58.5]} 26... Kxg5
{[%clk 0:01:20.4]} 27. Rf1 {[%clk 0:01:58.6]} 27... Qc5+ {[%clk 0:01:20.8]} 28.
Rf2 {[%clk 0:01:56.1]} 28... Qe3 {[%clk 0:01:21.1]} 29. Re1 {[%clk 0:01:37.7]}
29... Qxd2 {[%clk 0:01:18.5]} 30. Rxd2 {[%clk 0:01:38.6]} 30... b6 {[%clk
0:01:09.6]} 31. a6 {[%clk 0:01:38.5]} 31... Re5 {[%clk 0:01:08.1]} 32. Rf1
{[%clk 0:01:33.3]} 32... Rf8 {[%clk 0:01:08.1]} 33. Rdf2 {[%clk 0:01:30.7]}
33... Rf6 {[%clk 0:01:07.8]} 34. c4 {[%clk 0:01:29.2]} 34... h4 {[%clk 0:01:08]}
35. Kh2 {[%clk 0:01:26.6]} 35... Re7 {[%clk 0:01:01.4]} 36. b4 {[%clk 0:01:26]}
36... Re8 {[%clk 0:00:56.6]} 37. b5 {[%clk 0:01:25.6]} 37... Ref8 {[%clk
0:00:56.7]} 38. Rg1 {[%clk 0:01:16.4]} 38... Rh8 {[%clk 0:00:48.8]} 39. Rgf1
{[%clk 0:01:12.3]} 39... h3 {[%clk 0:00:35.9]} 40. g3 {[%clk 0:01:12.4]} 40...
fxg3+ {[%clk 0:00:36.7]} 41. Kxg3 {[%clk 0:01:12.7]} 41... Rxf2 {[%clk
0:00:37.6]} 42. Rxf2 {[%clk 0:01:12.8]} 42... h2 {[%clk 0:00:38.5]} 43. Rxh2
{[%clk 0:01:12.1]} 43... Rxh2 {[%clk 0:00:39.4]} 44. Kxh2 {[%clk 0:01:12.4]}
44... Kf4 {[%clk 0:00:40]} 45. Bc6 {[%clk 0:00:40.1]} 45... Be6 {[%clk 0:00:36]}
46. Kg2 {[%clk 0:00:29.5]} 46... Bxc4 {[%clk 0:00:35.9]} 47. Kf2 {[%clk
0:00:24.9]} 47... Bd3 {[%clk 0:00:36.4]} 48. Ke1 {[%clk 0:00:15.1]} 48... Ke3
{[%clk 0:00:37.3]} 49. Kd1 {[%clk 0:00:13.1]} 49... Bxe4 {[%clk 0:00:37.4]} 50.
Kc1 {[%clk 0:00:13.8]} 50... d5 {[%clk 0:00:36.2]} 51. Kd1 {[%clk 0:00:13]}
51... d4 {[%clk 0:00:34.7]} 52. Ke1 {[%clk 0:00:13.1]} 52... Bc2 {[%clk
0:00:33.7]} 0-1

[Event "Late-Titled-Tuesday-Blitz-April-02-2024"]
[Site "Chess.com"]
[Date "2024.04.02"]
[Round "4"]
[White "stollenmonster"]
[Black "SpeedofLight0"]
[Result "0-1"]
[WhiteElo "2850"]
[BlackElo "3058"]
[TimeControl "180+1"]
[EndTime "14:37:46 PDT"]
[Termination "SpeedofLight0 won on time"]

1. e4 {[%clk 0:03:00.9]} 1... Nc6 {[%clk 0:03:00]} 2. Nc3 {[%clk 0:03:00.6]}
2... d6 {[%clk 0:02:59.6]} 3. g3 {[%clk 0:03:00.3]} 3... Bd7 {[%clk 0:02:55.4]}
4. Bg2 {[%clk 0:03:00.7]} 4... g6 {[%clk 0:02:54.1]} 5. Nge2 {[%clk 0:03:00]}
5... Qc8 {[%clk 0:02:54.1]} 6. h3 {[%clk 0:02:59.8]} 6... h5 {[%clk 0:02:53.6]}
7. d4 {[%clk 0:03:00]} 7... Bg7 {[%clk 0:02:53.6]} 8. Be3 {[%clk 0:02:59.6]}
8... e5 {[%clk 0:02:53.1]} 9. Qd2 {[%clk 0:02:58.2]} 9... Nf6 {[%clk 0:02:52.5]}
10. Nd5 {[%clk 0:02:50.9]} 10... Nxd5 {[%clk 0:02:45.3]} 11. exd5 {[%clk
0:02:51.8]} 11... Ne7 {[%clk 0:02:40.1]} 12. dxe5 {[%clk 0:02:51.4]} 12... dxe5
{[%clk 0:02:40.8]} 13. Bc5 {[%clk 0:02:49.1]} 13... Nf5 {[%clk 0:02:36.5]} 14.
O-O-O {[%clk 0:02:42.5]} 14... b6 {[%clk 0:02:35.8]} 15. Ba3 {[%clk 0:02:41.5]}
15... Nd6 {[%clk 0:02:35.1]} 16. f4 {[%clk 0:02:40.2]} 16... Nc4 {[%clk
0:02:32.5]} 17. Qc3 {[%clk 0:02:40.5]} 17... Nxa3 {[%clk 0:02:31.6]} 18. Qxa3
{[%clk 0:02:41.1]} 18... Bf8 {[%clk 0:02:26.6]} 19. Qc3 {[%clk 0:02:37.8]} 19...
Bg7 {[%clk 0:02:23.3]} 20. Qa3 {[%clk 0:02:18.5]} 20... Qd8 {[%clk 0:02:17.5]}
21. fxe5 {[%clk 0:02:09.2]} 21... Bxe5 {[%clk 0:02:05.6]} 22. Rhe1 {[%clk
0:01:54.7]} 22... Bd6 {[%clk 0:02:05.6]} 23. Nf4+ {[%clk 0:01:42.1]} 23... Kf8
{[%clk 0:02:05.4]} 24. Qc3 {[%clk 0:01:42.8]} 24... Rh6 {[%clk 0:01:43.5]} 25.
Ne6+ {[%clk 0:01:40.5]} 25... Bxe6 {[%clk 0:01:43.6]} 26. dxe6 {[%clk
0:01:41.2]} 26... Qg5+ {[%clk 0:01:44.3]} 27. Kb1 {[%clk 0:01:40.8]} 27... Re8
{[%clk 0:01:44.3]} 28. exf7 {[%clk 0:01:38.1]} 28... Re5 {[%clk 0:00:55.5]} 29.
Rxe5 {[%clk 0:00:47.9]} 29... Qxe5 {[%clk 0:00:52.2]} 30. Qc6 {[%clk 0:00:44.4]}
30... Kxf7 {[%clk 0:00:49.3]} 31. Rf1+ {[%clk 0:00:34.5]} 31... Kg7 {[%clk
0:00:49.4]} 32. Bd5 {[%clk 0:00:33.5]} 32... Rh8 {[%clk 0:00:46.4]} 33. a3
{[%clk 0:00:19.2]} 33... Qxg3 {[%clk 0:00:31.4]} 34. Qd7+ {[%clk 0:00:16.9]}
34... Kh6 {[%clk 0:00:31.6]} 35. Be4 {[%clk 0:00:09.7]} 35... Rf8 {[%clk
0:00:31.1]} 36. Rxf8 {[%clk 0:00:08.4]} 36... Bxf8 {[%clk 0:00:32]} 37. Qf7
{[%clk 0:00:08.5]} 37... Bg7 {[%clk 0:00:31.2]} 38. Bd3 {[%clk 0:00:05.8]} 38...
Qd6 {[%clk 0:00:26.1]} 39. Kc1 {[%clk 0:00:02.6]} 39... Bd4 {[%clk 0:00:20.1]}
40. c3 {[%clk 0:00:01.9]} 40... Bxc3 {[%clk 0:00:16.9]} 41. Kc2 {[%clk
0:00:02.5]} 41... Be5 {[%clk 0:00:16.1]} 42. b4 {[%clk 0:00:02]} 42... Qf6
{[%clk 0:00:14.3]} 43. Qg8 {[%clk 0:00:01.7]} 43... Qc6+ {[%clk 0:00:12.3]} 0-1

[Event "Late-Titled-Tuesday-Blitz-April-02-2024"]
[Site "Chess.com"]
[Date "2024.04.02"]
[Round "4"]
[White "WindWhistler11"]
[Black "Mackster23"]
[Result "0-1"]
[WhiteElo "2447"]
[BlackElo "2628"]
[TimeControl "180+1"]
[EndTime "14:37:46 PDT"]
[Termination "Mackster23 won by resignation"]

1. Nf3 {[%clk 0:02:59.7]} 1... d5 {[%clk 0:02:58]} 2. c4 {[%clk 0:02:57.8]} 2...
e6 {[%clk 0:02:49.6]} 3. g3 {[%clk 0:02:55.4]} 3... Nf6 {[%clk 0:02:49.2]} 4.
Bg2 {[%clk 0:02:54.7]} 4... d4 {[%clk 0:02:46.7]} 5. e3 {[%clk 0:02:53.8]} 5...
Nc6 {[%clk 0:02:45]} 6. O-O {[%clk 0:02:32.7]} 6... e5 {[%clk 0:02:43.8]} 7.
exd4 {[%clk 0:02:32.6]} 7... e4 {[%clk 0:02:44.1]} 8. Ne5 {[%clk 0:02:29.9]}
8... Nxd4 {[%clk 0:02:23.4]} 9. Re1 {[%clk 0:02:22.8]} 9... Bd6 {[%clk
0:02:20.3]} 10. Nf3 {[%clk 0:02:14.3]} 10... Bg4 {[%clk 0:02:06.8]} 11. Qa4+
{[%clk 0:02:13.2]} 11... Bd7 {[%clk 0:01:51.9]} 12. Qd1 {[%clk 0:02:01.7]} 12...
Ne6 {[%clk 0:01:28.6]} 13. Nh4 {[%clk 0:01:54.1]} 13... O-O {[%clk 0:01:22.2]}
14. d4 {[%clk 0:01:42.6]} 14... exd3 {[%clk 0:01:13.1]} 15. Qxd3 {[%clk
0:01:42.8]} 15... Re8 {[%clk 0:01:03.4]} 16. Be3 {[%clk 0:01:24.4]} 16... Nc5
{[%clk 0:00:49.9]} 17. Qc2 {[%clk 0:01:24.4]} 17... Nce4 {[%clk 0:00:44.5]} 18.
Nc3 {[%clk 0:01:12.1]} 18... Bc6 {[%clk 0:00:40.7]} 19. Nf5 {[%clk 0:01:05.8]}
19... Bb4 {[%clk 0:00:33.3]} 20. Red1 {[%clk 0:01:02.7]} 20... Qc8 {[%clk
0:00:32.2]} 21. Bh3 {[%clk 0:01:03.1]} 21... Qb8 {[%clk 0:00:07.7]} 22. Nd5
{[%clk 0:00:58.9]} 22... Bxd5 {[%clk 0:00:05.6]} 23. cxd5 {[%clk 0:00:59.8]}
23... Nd6 {[%clk 0:00:03.1]} 24. Rac1 {[%clk 0:00:32.2]} 24... Nxf5 {[%clk
0:00:03.1]} 25. Bxf5 {[%clk 0:00:33.1]} 25... Bd6 {[%clk 0:00:03.7]} 26. Bd4
{[%clk 0:00:32.6]} 26... Nd7 {[%clk 0:00:02]} 27. Bxh7+ {[%clk 0:00:32]} 27...
Kf8 {[%clk 0:00:02.8]} 28. Bd3 {[%clk 0:00:32.5]} 28... Ne5 {[%clk 0:00:03.2]}
29. Be4 {[%clk 0:00:31.7]} 29... Ng4 {[%clk 0:00:03.3]} 30. Qe2 {[%clk
0:00:31.1]} 30... Nf6 {[%clk 0:00:03.1]} 31. Bxf6 {[%clk 0:00:31.3]} 31... gxf6
{[%clk 0:00:04]} 32. Qg4 {[%clk 0:00:30.5]} 32... Qc8 {[%clk 0:00:04.1]} 33. Bf5
{[%clk 0:00:31]} 33... Qd8 {[%clk 0:00:04.3]} 34. Re1 {[%clk 0:00:30.1]} 34...
Re5 {[%clk 0:00:04.7]} 35. Qh5 {[%clk 0:00:29.4]} 35... Ke7 {[%clk 0:00:04.2]}
36. Rxe5+ {[%clk 0:00:28.5]} 36... Bxe5 {[%clk 0:00:05.1]} 37. f4 {[%clk
0:00:29]} 37... Bd4+ {[%clk 0:00:05.1]} 38. Kf1 {[%clk 0:00:27.9]} 38... Qxd5
{[%clk 0:00:05.7]} 39. Re1+ {[%clk 0:00:27.2]} 39... Kd6 {[%clk 0:00:06.5]} 40.
Qg4 {[%clk 0:00:22.7]} 40... Qh1+ {[%clk 0:00:06.8]} 41. Ke2 {[%clk 0:00:22.5]}
41... Re8+ {[%clk 0:00:07.6]} 0-1

[Event "Late-Titled-Tuesday-Blitz-April-02-2024"]
[Site "Chess.com"]
[Date "2024.04.02"]
[Round "4"]
[White "Meri-Arabidze"]
[Black "vova-79"]
[Result "1-0"]
[WhiteElo "2705"]
[BlackElo "2558"]
[TimeControl "180+1"]
[EndTime "14:37:47 PDT"]
[Termination "Meri-Arabidze won on time"]

1. d4 {[%clk 0:02:57.9]} 1... d5 {[%clk 0:02:43.8]} 2. c4 {[%clk 0:02:57.8]}
2... c6 {[%clk 0:02:42]} 3. Nf3 {[%clk 0:02:58.4]} 3... Nf6 {[%clk 0:02:41.6]}
4. Nbd2 {[%clk 0:02:57.2]} 4... e6 {[%clk 0:02:40.3]} 5. e3 {[%clk 0:02:56.5]}
5... Nbd7 {[%clk 0:02:37.9]} 6. b3 {[%clk 0:02:56.7]} 6... Bd6 {[%clk
0:02:33.4]} 7. Bb2 {[%clk 0:02:56.9]} 7... Qe7 {[%clk 0:02:34]} 8. Bd3 {[%clk
0:02:56]} 8... Ba3 {[%clk 0:02:33.3]} 9. Bxa3 {[%clk 0:02:55.6]} 9... Qxa3
{[%clk 0:02:32.2]} 10. O-O {[%clk 0:02:56.5]} 10... O-O {[%clk 0:02:30]} 11. Qc2
{[%clk 0:02:54.9]} 11... h6 {[%clk 0:02:28]} 12. c5 {[%clk 0:02:46.7]} 12... Re8
{[%clk 0:02:19.3]} 13. Qc3 {[%clk 0:02:40.6]} 13... a5 {[%clk 0:01:41.6]} 14.
Ne1 {[%clk 0:02:21.6]} 14... Qb4 {[%clk 0:01:37.9]} 15. Qxb4 {[%clk 0:02:19.3]}
15... axb4 {[%clk 0:01:37.6]} 16. Nc2 {[%clk 0:02:20.2]} 16... b6 {[%clk
0:01:03.5]} 17. cxb6 {[%clk 0:02:19.2]} 17... c5 {[%clk 0:01:04]} 18. dxc5
{[%clk 0:02:12.4]} 18... Nxc5 {[%clk 0:01:04.9]} 19. Bb5 {[%clk 0:02:10.9]}
19... Bd7 {[%clk 0:01:02.1]} 20. Bxd7 {[%clk 0:02:10.5]} 20... Nfxd7 {[%clk
0:01:01.8]} 21. Nxb4 {[%clk 0:02:10.9]} 21... Nxb6 {[%clk 0:01:02.1]} 22. Rfc1
{[%clk 0:02:06.2]} 22... Rec8 {[%clk 0:01:01.3]} 23. Kf1 {[%clk 0:02:03.6]}
23... Kf8 {[%clk 0:00:59.2]} 24. Ke2 {[%clk 0:02:00.2]} 24... Ke7 {[%clk
0:00:59.2]} 25. Rc2 {[%clk 0:01:55.2]} 25... Kd6 {[%clk 0:00:50.6]} 26. Rac1
{[%clk 0:01:55.1]} 26... Ncd7 {[%clk 0:00:39.9]} 27. Rc6+ {[%clk 0:01:51.5]}
27... Ke7 {[%clk 0:00:38.4]} 28. a4 {[%clk 0:01:45.3]} 28... Rxc6 {[%clk
0:00:34.5]} 29. Rxc6 {[%clk 0:01:40.4]} 29... Nc8 {[%clk 0:00:33.8]} 30. Nd3
{[%clk 0:01:24.8]} 30... Nd6 {[%clk 0:00:22.1]} 31. Nc5 {[%clk 0:01:09.3]} 31...
Ne5 {[%clk 0:00:19.6]} 32. Rb6 {[%clk 0:01:01.3]} 32... Nd7 {[%clk 0:00:11.5]}
33. Nxd7 {[%clk 0:01:00.9]} 33... Kxd7 {[%clk 0:00:12.4]} 34. Rb4 {[%clk
0:00:54.2]} 34... Kc6 {[%clk 0:00:09.7]} 35. Rg4 {[%clk 0:00:47.2]} 35... g5
{[%clk 0:00:09.4]} 36. Rd4 {[%clk 0:00:35]} 36... Kc5 {[%clk 0:00:09]} 37. b4+
{[%clk 0:00:33.1]} 37... Kc6 {[%clk 0:00:08.6]} 38. b5+ {[%clk 0:00:33.2]} 38...
Kb6 {[%clk 0:00:09]} 39. Nb3 {[%clk 0:00:30.2]} 39... Nc4 {[%clk 0:00:08.5]} 40.
e4 {[%clk 0:00:25.3]} 40... Rxa4 {[%clk 0:00:07.9]} 41. exd5 {[%clk 0:00:25.8]}
41... exd5 {[%clk 0:00:08.5]} 42. Rxd5 {[%clk 0:00:24.8]} 42... Rb4 {[%clk
0:00:09.1]} 43. Nd2 {[%clk 0:00:20.5]} 43... Nxd2 {[%clk 0:00:08.1]} 44. Kxd2
{[%clk 0:00:21]} 44... Rxb5 {[%clk 0:00:03.4]} 45. Rd6+ {[%clk 0:00:21.1]} 45...
Kc5 {[%clk 0:00:02.9]} 46. Rxh6 {[%clk 0:00:22]} 1-0